bitfinex/quotes_ETHUSD_20250908
["timestamp","ask_amount","ask_price","bid_price","bid_amount"]
[1757293677450,3.909,4298.4,4298.3,0.002]
[1757293677651,4.6403,4298.4,4298.3,0.002]
[1757293678985,4.6403,4298.4,4298.3,2.32850117]
[1757293680155,4.6403,4298.4,4298.3,0.002]
[1757293681762,5.1151,4298.4,4298.3,0.002]
[1757293682406,4.6403,4298.4,4298.3,0.002]
[1757293682694,8.23354705,4298.4,4298.3,0.002]
[1757293682894,5.9071,4298.4,4298.3,0.002]
[1757293683099,5.4323,4298.4,4298.3,0.002]
[1757293683299,0.7313,4298.4,4298.3,0.002]
[1757293683508,3.909,4298.4,4298.3,0.1878]
[1757293684071,3.909,4298.4,4298.3,2.32850117]
[1757293684289,3.909,4298.4,4298.3,2.51430117]
[1757293684709,1.787,4298.9,4298.3,0.6858]
[1757293684918,1.787,4298.9,4298.7,2.32628469]
[1757293684919,3.909,4298.8,4298.7,2.32628469]
[1757293685062,3.909,4298.8,4298.7,3.01008469]
[1757293685373,1.787,4298.9,4298.8,2.32623057]
[1757293685572,5.696,4298.9,4298.8,2.32623057]
[1757293685772,1.787,4298.9,4298.8,2.32623057]
[1757293685999,5.696,4298.9,4298.8,2.51203057]
[1757293686532,5.696,4298.9,4298.7,2.44228409]
[1757293686812,5.696,4298.9,4298.3,7.38804874]
[1757293686813,3.11833024,4298.7,4298.3,0.002]
[1757293687016,3.909,4298.6,4298.3,0.002]
[1757293687309,0.2872,4298.4,4298.3,0.002]
[1757293687670,0.7313,4298.4,4298.3,0.002]
[1757293688212,1.9981,4298.4,4298.3,0.002]
[1757293688420,4.97258779,4298.4,4298.3,0.002]
[1757293688629,5.08858779,4298.4,4298.3,0.002]
[1757293690686,8.99758779,4298.4,4298.3,0.002]
[1757293691299,5.5483,4298.4,4298.3,0.002]
[1757293691697,7.87474705,4298.4,4298.3,0.002]
[1757293691998,6.0231,4298.4,4298.3,0.002]
[1757293692597,5.5483,4298.4,4298.3,0.002]
[1757293692787,5.1042,4298.4,4298.3,0.002]
[1757293693193,7.87474705,4298.4,4298.3,0.002]
[1757293693724,5.5483,4298.4,4298.3,0.002]
[1757293694091,7.87474705,4298.4,4298.3,0.002]
[1757293694898,8.34954705,4298.4,4298.3,0.002]
[1757293695218,6.56840883,4298.4,4298.3,0.002]
[1757293695421,5.5483,4298.4,4298.3,0.002]
[1757293695921,7.87474705,4298.4,4298.3,0.002]
[1757293696108,5.5483,4298.4,4298.3,0.002]
[1757293696816,7.87474705,4298.4,4298.3,0.002]
[1757293697726,5.5483,4298.4,4298.3,0.002]
[1757293698694,7.87474705,4298.4,4298.3,0.002]
[1757293700233,5.5483,4298.4,4298.3,0.002]
[1757293700931,4.817,4298.4,4298.3,0.002]
[1757293703295,5.1307,4298.4,4298.3,0.002]
[1757293703496,2.32671769,4297.9,4297.8,0.027]
[1757293703725,8.02271769,4297.9,4297.8,0.027]
[1757293703898,3.3376,4297.9,4297.8,0.027]
[1757293704104,9.57331769,4297.9,4297.8,0.027]
[1757293705394,2.1007,4297.9,4297.8,0.027]
[1757293705594,5.696,4297.9,4297.8,0.216]
[1757293705795,5.696,4297.9,4297.8,0.027]
[1757293706010,10.04261769,4297.9,4297.8,0.027]
[1757293706208,11.2795406,4297.9,4297.8,0.027]
[1757293711616,10.8102406,4297.9,4297.8,0.027]
[1757293718056,11.2795406,4297.9,4297.8,0.027]
[1757293718653,1.787,4297.9,4297.8,0.216]
[1757293718818,5.696,4297.9,4297.8,0.6744]
[1757293722962,5.696,4297.9,4297.8,3.11717183]
[1757293724346,5.696,4297.9,4297.8,0.7904]
[1757293724542,5.696,4297.9,4297.8,3.11717183]
[1757293725554,6.4546,4297.9,4297.8,0.027]
[1757293727655,6.1409,4297.9,4297.8,0.027]
[1757293727834,5.696,4297.9,4297.8,0.027]
[1757293729052,6.0097,4297.9,4297.8,0.027]
[1757293729278,6.4546,4297.9,4297.8,0.027]
[1757293731056,5.696,4297.9,4297.8,0.027]
[1757293732159,6.4546,4297.9,4297.8,0.027]
[1757293732336,6.9239,4297.9,4297.8,0.027]
[1757293732761,6.4546,4297.9,4297.8,0.027]
[1757293733337,10.97456921,4297.9,4297.8,0.027]
[1757293734959,16.9393267,4297.9,4297.8,0.027]
[1757293735179,17.4399122,4297.9,4297.8,0.027]
[1757293735341,16.9393267,4297.9,4297.8,0.027]
[1757293735865,17.43978467,4297.9,4297.8,0.027]
[1757293736262,16.9393267,4297.9,4297.8,0.027]
[1757293737151,3.11893426,4297.5,4297.4,0.002]
[1757293737354,12.99156494,4297.5,4297.4,0.002]
[1757293737553,14.24096494,4297.5,4297.4,0.002]
[1757293737754,14.74112232,4297.5,4297.4,0.002]
[1757293738282,14.24096494,4297.5,4297.4,0.002]
[1757293738453,16.09133925,4297.5,4297.4,0.002]
[1757293739664,26.15133925,4297.5,4297.4,0.002]
[1757293739844,26.15133925,4297.5,4297.0,0.002]
[1757293739845,11.64936349,4297.1,4297.0,0.002]
[1757293740045,18.2784516,4297.1,4297.0,0.002]
[1757293740279,21.58840453,4297.1,4297.0,0.002]
[1757293740770,21.58837839,4297.1,4297.0,0.002]
[1757293741271,21.58796017,4297.1,4297.0,0.002]
[1757293741453,21.08831625,4297.1,4297.0,0.002]
[1757293741655,21.26616704,4297.1,4297.0,0.002]
[1757293741856,15.08290362,4297.1,4297.0,0.002]
[1757293742062,14.86617622,4297.1,4297.0,0.002]
[1757293742255,14.64890379,4297.1,4297.0,0.002]
[1757293743251,12.58835086,4297.1,4297.0,0.002]
[1757293744277,9.58835086,4297.1,4297.0,0.002]
[1757293745385,0.001,4298.4,4297.0,6.20851263]
[1757293745697,3.91,4298.4,4297.8,0.116]
[1757293745903,3.91,4298.4,4297.9,2.32671769]
[1757293746103,0.793,4298.3,4298.2,0.189]
[1757293746397,0.001,4298.3,4298.2,0.6763]
[1757293746856,0.001,4298.3,4298.2,0.7944]
[1757293747050,0.001,4298.3,4298.2,3.1209553]
[1757293748596,0.001,4298.3,4298.2,3.2369553]
[1757293750658,0.001,4298.3,4298.2,3.1188553]
[1757293751552,0.001,4298.3,4298.2,0.7923]
[1757293751753,3.935,4298.3,4298.2,0.305]
[1757293751953,3.935,4298.3,4297.8,3.69867938]
[1757293751954,3.935,4298.3,4297.8,1.18597938]
[1757293752149,3.935,4298.3,4298.0,0.116]
[1757293752378,3.935,4298.3,4298.1,0.4873]
[1757293752571,3.935,4298.3,4298.2,0.189]
[1757293752771,3.935,4298.3,4298.1,0.4873]
[1757293752975,3.935,4298.3,4298.0,0.116]
[1757293753200,3.935,4298.3,4298.0,2.92995373]
[1757293753884,3.935,4298.3,4298.0,0.6033]
[1757293754055,0.4632,4298.2,4298.0,0.116]
[1757293754387,3.935,4298.3,4298.0,0.116]
[1757293755298,0.4632,4298.2,4298.0,0.116]
[1757293756787,0.4632,4298.2,4298.0,0.81464359]
[1757293757091,0.4632,4298.2,4298.0,0.116]
[1757293761072,0.4632,4298.2,4298.0,0.81464358]
[1757293761276,3.935,4298.3,4298.0,0.81464358]
[1757293761674,4.3982,4298.3,4298.0,0.116]
[1757293761881,4.3982,4298.3,4298.0,0.81464358]
[1757293762200,0.001,4298.2,4298.0,0.116]
[1757293762876,1.5652,4298.1,4298.0,0.116]
[1757293763183,0.792,4297.9,4297.1,0.002]
[1757293763380,0.792,4297.5,4297.1,0.002]
[1757293763585,0.792,4297.3,4297.1,0.002]
[1757293763895,0.2893,4297.2,4297.1,0.002]
[1757293764064,0.732,4297.2,4297.1,0.002]
[1757293764261,4.34019671,4297.2,4297.1,0.002]
[1757293764464,5.6574182,4297.2,4297.1,0.002]
[1757293766779,3.33032149,4297.2,4297.1,0.002]
[1757293767105,5.6574182,4297.2,4297.1,0.002]
[1757293767305,9.5824182,4297.2,4297.1,0.002]
[1757293769606,7.25532149,4297.2,4297.1,0.002]
[1757293769978,2.39852149,4297.2,4297.1,0.002]
[1757293770194,3.924,4297.2,4297.1,0.6692]
[1757293770485,3.924,4297.2,4297.1,0.002]
[1757293771081,6.54039671,4297.2,4297.1,0.002]
[1757293771282,6.98309671,4297.2,4297.1,0.002]
[1757293771507,4.656,4297.2,4297.1,0.002]
[1757293771806,6.98309671,4297.2,4297.1,0.002]
[1757293772101,8.8847999,4297.2,4297.1,0.002]
[1757293772685,7.77509671,4297.2,4297.1,0.002]
[1757293773075,7.89109671,4297.2,4297.1,0.002]
[1757293774095,5.564,4297.2,4297.1,0.002]
[1757293774778,4.832,4297.2,4297.1,0.002]
[1757293775808,4.832,4297.2,4297.1,0.6692]
[1757293776175,4.832,4297.2,4297.1,0.191]
[1757293776507,4.832,4297.2,4297.1,0.002]
[1757293781622,5.2747,4297.2,4297.1,0.002]
[1757293782085,5.564,4297.2,4297.1,0.002]
[1757293782916,6.98280404,4297.2,4297.1,0.002]
[1757293783091,9.30990075,4297.2,4297.1,0.002]
[1757293783287,6.98280404,4297.2,4297.1,0.002]
[1757293783513,5.564,4297.2,4297.1,0.002]
[1757293783820,5.2747,4297.2,4297.1,0.002]
[1757293783983,4.832,4297.2,4297.1,0.002]
[1757293784994,5.2747,4297.2,4297.1,0.002]
[1757293788221,7.60179671,4297.2,4297.1,0.002]
[1757293788426,7.89109671,4297.2,4297.1,0.002]
[1757293789720,5.564,4297.2,4297.1,0.002]
[1757293790437,7.89109671,4297.2,4297.1,0.002]
[1757293791122,5.564,4297.2,4297.1,0.002]
[1757293791433,4.832,4297.2,4297.1,0.002]
[1757293792146,1.787,4297.4,4297.1,0.6692]
[1757293792445,3.912,4297.3,4297.2,0.4782]
[1757293793311,3.912,4297.3,4297.2,0.6672]
[1757293793820,3.912,4297.3,4297.1,0.002]
[1757293794042,6.70135419,4297.3,4297.1,0.002]
[1757293794837,4.3743,4297.3,4297.1,0.002]
[1757293795272,0.4623,4297.2,4297.1,0.002]
[1757293796370,3.912,4297.3,4297.1,0.002]
[1757293797070,4.3743,4297.3,4297.1,0.002]
[1757293797272,4.38029671,4297.2,4297.1,0.002]
[1757293797568,1.5704,4297.2,4297.1,0.002]
[1757293797772,0.792,4297.2,4297.1,0.002]
[1757293798976,3.89749671,4297.2,4297.1,0.002]
[1757293799376,1.5704,4297.2,4297.1,0.002]
[1757293800076,0.792,4297.2,4297.1,0.002]
[1757293800275,0.116,4297.3,4297.1,0.191]
[1757293800484,3.911,4297.2,4297.1,0.191]
[1757293800949,3.911,4297.2,4297.1,0.6747]
[1757293801354,6.55419671,4297.2,4297.1,0.002]
[1757293801559,9.12541638,4297.2,4297.1,0.002]
[1757293804988,9.34291548,4297.2,4297.1,0.002]
[1757293806066,9.12541638,4297.2,4297.1,0.002]
[1757293807966,9.34282468,4297.2,4297.1,0.002]
[1757293808599,9.12541638,4297.2,4297.1,0.002]
[1757293810708,7.86421638,4297.2,4297.1,0.002]
[1757293811406,3.911,4297.2,4297.1,0.6747]
[1757293811704,1.903,4297.4,4297.1,0.6747]
[1757293811894,1.903,4297.4,4297.2,0.4837]
[1757293811895,3.911,4297.3,4297.2,0.4837]
[1757293812095,1.787,4297.4,4297.3,0.4837]
[1757293812310,0.001,4297.7,4297.3,0.6727]
[1757293812516,2.498,4297.6,4297.4,2.92878841]
[1757293812673,2.498,4297.6,4297.5,2.99963426]
[1757293812869,0.001,4297.7,4297.6,2.32688011]
[1757293813174,3.761,4297.7,4297.6,2.92868011]
[1757293813495,3.761,4297.7,4297.6,2.99958011]
[1757293814073,3.761,4297.7,4297.6,3.11768011]
[1757293814401,3.912,4297.7,4297.6,6.11768011]
[1757293814707,0.001,4297.7,4297.6,6.11768011]
[1757293817807,0.001,4298.2,4298.1,2.32660943]
[1757293818009,0.001,4298.2,4298.1,15.43667308]
[1757293818215,1e-08,4298.4,4298.3,2.32650117]
[1757293818370,1e-08,4298.4,4298.3,2.34976618]
[1757293818709,1e-08,4298.4,4298.3,6.14056618]
[1757293819006,1e-08,4298.4,4298.3,10.50609873]
[1757293819415,1e-08,4298.4,4298.3,5.99920117]
[1757293819710,1e-08,4298.4,4298.3,5.51550117]
[1757293820481,1e-08,4298.4,4298.3,5.99920117]
[1757293820878,1e-08,4298.4,4298.3,3.0]
[1757293821314,1e-08,4298.4,4298.3,5.32650117]
[1757293821517,1e-08,4298.4,4298.3,5.51550117]
[1757293822299,1e-08,4298.4,4298.3,5.63150117]
[1757293823516,0.30410001,4298.4,4298.3,5.44250117]
[1757293823719,0.76890001,4298.4,4298.3,5.44250117]
[1757293825528,0.46480001,4298.4,4298.3,5.44250117]
[1757293826219,1e-08,4298.4,4298.3,5.44250117]
[1757293828489,1e-08,4298.4,4298.3,5.63150117]
[1757293828991,0.76890001,4298.4,4298.3,3.116]
[1757293829205,1.22720001,4298.4,4298.3,0.116]
[1757293829926,2.32654395,4298.3,4297.5,2.32688539]
[1757293830089,3.24967019,4298.2,4297.9,0.116]
[1757293830296,0.3041,4298.0,4297.9,0.116]
[1757293830696,1.2272,4298.0,4297.9,0.116]
[1757293832411,1.2272,4298.0,4297.1,2.32914731]
[1757293832605,3.24983054,4297.9,4297.5,0.116]
[1757293832809,3.909,4297.8,4297.5,0.116]
[1757293833009,0.3041,4297.6,4297.5,0.116]
[1757293833413,0.7689,4297.6,4297.5,0.116]
[1757293833614,1.2272,4297.6,4297.5,0.116]
[1757293834218,0.7689,4297.6,4297.5,0.116]
[1757293834641,0.7689,4297.6,4297.5,2.44293426]
[1757293834948,0.7689,4297.6,4297.5,0.116]
[1757293836713,2.0192,4297.6,4297.5,0.116]
[1757293836944,3.11894346,4297.5,4297.3,0.69872168]
[1757293837145,3.11898841,4297.4,4297.3,0.69872168]
[1757293837319,4.34623941,4297.4,4297.1,0.118]
[1757293837524,6.69434694,4297.3,4297.1,0.118]
[1757293837744,2.32709671,4297.2,4297.1,0.002]
[1757293837917,5.52051993,4297.2,4297.1,0.002]
[1757293849083,12.58051993,4297.2,4297.1,0.002]
[1757293853174,12.58051993,4297.2,4296.8,0.025]
[1757293853175,2.32720502,4297.0,4296.8,0.025]
[1757293853371,15.55542534,4296.9,4296.8,0.01300002]
[1757293853677,18.28728816,4296.9,4296.8,0.01300002]
[1757293857842,0.792,4296.7,4296.5,0.002]
[1757293858063,10.02942168,4296.6,4296.5,0.002]
[1757293858273,13.4952035,4296.6,4296.5,0.002]
[1757293859775,13.58842935,4296.6,4296.5,0.002]
[1757293860178,13.8049449,4296.6,4296.5,0.002]
[1757293860679,13.58842935,4296.6,4296.5,0.002]
[1757293861276,13.80497486,4296.6,4296.5,0.002]
[1757293862369,13.80501891,4296.6,4296.5,0.002]
[1757293866277,14.30477469,4296.6,4296.5,0.002]
[1757293867190,14.52174285,4296.6,4296.5,0.002]
[1757293867543,15.91874285,4296.6,4296.5,0.002]
[1757293868768,15.42774285,4296.6,4296.5,0.002]
[1757293869077,13.26974285,4296.6,4296.5,0.002]
[1757293869278,13.176517,4296.6,4296.5,0.002]
[1757293869479,20.998517,4296.6,4296.5,0.002]
[1757293872383,20.997517,4296.6,4296.5,0.002]
[1757293872581,12.533517,4296.6,4296.5,0.6508]
[1757293872751,13.51501124,4296.6,4296.5,0.6508]
[1757293873383,14.30701124,4296.6,4296.5,0.6508]
[1757293875577,14.30701124,4296.6,4296.5,0.002]
[1757293877000,21.16457789,4296.6,4296.5,0.002]
[1757293879896,20.67357789,4296.6,4296.5,0.002]
[1757293881570,16.76257789,4296.6,4296.5,0.002]
[1757293881878,20.67257789,4296.6,4296.5,0.002]
[1757293882081,16.76257789,4296.6,4296.5,0.002]
[1757293882283,20.67257789,4296.6,4296.5,0.002]
[1757293885009,16.30337789,4296.6,4296.5,0.002]
[1757293885203,20.65837789,4296.6,4296.5,0.002]
[1757293885572,20.65837789,4296.6,4296.2,1e-08]
[1757293885573,6.1195842,4296.3,4296.2,1e-08]
[1757293885921,6.23563837,4296.2,4296.1,1e-08]
[1757293886087,8.48223806,4296.2,4296.1,1e-08]
[1757293886281,12.87702738,4296.2,4296.1,1e-08]
[1757293886482,15.14493535,4296.2,4296.1,1e-08]
[1757293887207,22.20493535,4296.2,4296.1,1e-08]
[1757293887575,26.05193535,4296.2,4296.1,1e-08]
[1757293887773,23.60224137,4296.2,4296.1,1e-08]
[1757293890490,23.60300861,4296.2,4296.1,1e-08]
[1757293892090,3.1199093,4295.7,4295.6,0.002]
[1757293892324,19.04984419,4295.7,4295.6,0.002]
[1757293892502,20.28217157,4295.7,4295.6,0.002]
[1757293893026,19.99527157,4295.7,4295.6,0.002]
[1757293893409,20.28217157,4295.7,4295.6,0.002]
[1757293893616,22.54316882,4295.7,4295.6,0.002]
[1757293894197,17.28606129,4295.7,4295.6,0.002]
[1757293894432,21.68085061,4295.7,4295.6,0.6838]
[1757293894602,21.68085061,4295.7,4295.6,0.002]
[1757293895198,14.7920623,4295.7,4295.6,0.6838]
[1757293895730,18.7020623,4295.7,4295.6,0.002]
[1757293896115,19.4339623,4295.7,4295.6,0.002]
[1757293897738,14.80791414,4295.7,4295.6,0.191]
[1757293897940,15.0252283,4295.7,4295.6,0.6838]
[1757293899042,15.02515578,4295.7,4295.6,0.6838]
[1757293900118,14.80785312,4295.7,4295.6,0.6838]
[1757293901407,14.30721196,4295.7,4295.6,0.6838]
[1757293901830,14.30721196,4295.7,4295.6,0.002]
[1757293902132,14.80792793,4295.7,4295.6,0.002]
[1757293902332,10.89792793,4295.7,4295.6,0.002]
[1757293902535,7.06,4295.7,4295.6,0.6838]
[1757293902834,13.2979093,4295.7,4295.6,0.6838]
[1757293903199,14.0899093,4295.7,4295.6,0.6838]
[1757293903403,13.2979093,4295.7,4295.6,0.6838]
[1757293903819,14.0899093,4295.7,4295.6,0.6838]
[1757293904708,14.0889093,4295.7,4295.6,0.6838]
[1757293906510,14.0889093,4295.7,4295.6,0.191]
[1757293907342,14.0889093,4295.7,4295.6,0.002]
[1757293907643,16.50708075,4295.7,4295.6,0.002]
[1757293907947,18.02407463,4295.7,4295.6,0.002]
[1757293909141,17.57387463,4295.7,4295.6,0.002]
[1757293909923,18.02407463,4295.7,4295.6,0.002]
[1757293910443,17.57387463,4295.7,4295.6,0.002]
[1757293912042,13.66487463,4295.7,4295.6,0.002]
[1757293912336,17.57387463,4295.7,4295.6,0.002]
[1757293913016,16.84197463,4295.7,4295.6,0.002]
[1757293914030,12.93297463,4295.7,4295.6,0.002]
[1757293914315,17.58527463,4295.7,4295.6,0.002]
[1757293914507,13.67627463,4295.7,4295.6,0.002]
[1757293914725,20.58527463,4295.7,4295.6,0.002]
[1757293914918,21.03667463,4295.7,4295.6,0.002]
[1757293915321,20.58527463,4295.7,4295.6,0.002]
[1757293916445,19.84197463,4295.7,4295.6,0.002]
[1757293917018,20.58527463,4295.7,4295.6,0.002]
[1757293918547,25.43146395,4295.7,4295.6,0.002]
[1757293920160,24.98006395,4295.7,4295.6,0.002]
[1757293921164,11.24670318,4295.7,4295.6,0.6871]
[1757293921349,14.36370318,4295.7,4295.6,0.6871]
[1757293921675,15.15570318,4295.7,4295.6,0.6871]
[1757293922341,14.30645711,4295.7,4295.6,0.6871]
[1757293923846,4.12554781,4295.7,4295.6,0.8052]
[1757293924050,0.001,4296.0,4295.6,0.8052]
[1757293924269,0.001,4296.0,4295.6,0.191]
[1757293924270,3.908,4295.9,4295.6,0.191]
[1757293924558,3.908,4295.8,4295.7,2.9421093]
[1757293924759,3.908,4295.8,4295.7,3.1311093]
[1757293925059,3.908,4295.8,4295.7,0.8032]
[1757293925263,3.908,4295.8,4295.7,3.1311093]
[1757293926762,0.001,4296.0,4295.7,0.8032]
[1757293926929,3.908,4295.9,4295.8,0.6142]
[1757293927262,3.908,4295.9,4295.8,0.6851]
[1757293927627,3.908,4295.9,4295.8,0.8032]
[1757293928274,3.908,4295.9,4295.8,3.13105511]
[1757293928431,3.908,4295.9,4295.8,0.8032]
[1757293929039,3.908,4295.9,4295.8,0.6851]
[1757293931703,3.1199093,4295.7,4295.6,0.002]
[1757293931998,7.0269093,4295.7,4295.6,0.002]
[1757293932204,4.699,4295.7,4295.6,0.002]
[1757293932401,7.0269093,4295.7,4295.6,0.002]
[1757293933800,4.699,4295.7,4295.6,0.002]
[1757293934158,7.0269093,4295.7,4295.6,0.002]
[1757293935066,7.4792093,4295.7,4295.6,0.002]
[1757293935365,7.7702093,4295.7,4295.6,0.002]
[1757293935906,8.83685393,4295.7,4295.6,0.002]
[1757293936100,9.28825393,4295.7,4295.6,0.002]
[1757293937003,4.815,4295.7,4295.6,0.191]
[1757293937236,7.5952093,4295.7,4295.6,0.002]
[1757293937530,5.5583,4295.7,4295.6,0.002]
[1757293938315,7.8862093,4295.7,4295.6,0.002]
[1757293938934,0.001,4296.0,4295.6,0.8052]
[1757293939133,3.907,4295.9,4295.7,0.4961]
[1757293939322,3.907,4295.9,4295.8,0.189]
[1757293939522,3.907,4295.9,4295.8,0.6851]
[1757293939724,3.907,4295.9,4295.8,0.8032]
[1757293939925,3.907,4295.9,4295.8,0.6851]
[1757293942640,3.906,4295.9,4295.8,3.01295511]
[1757293942845,3.906,4295.9,4295.8,3.13105511]
[1757293944238,3.906,4295.9,4295.8,3.01295511]
[1757293945631,3.906,4295.9,4295.8,3.12895511]
[1757293946265,0.001,4296.0,4295.9,2.32780092]
[1757293946565,3.907,4296.0,4295.9,2.81530092]
[1757293946870,3.907,4296.0,4295.9,3.00430092]
[1757293947160,0.001,4296.0,4295.9,3.00430092]
[1757293947363,3.907,4296.0,4295.9,6.23840092]
[1757293947932,3.907,4296.0,4295.9,6.93729516]
[1757293949466,3.907,4296.0,4295.9,4.00389424]
[1757293949636,3.907,4296.0,4295.9,5.63280092]
[1757293949974,3.907,4296.0,4295.9,6.12030092]
[1757293952774,3.907,4296.0,4295.9,5.63280092]
[1757293953372,3.907,4296.0,4295.9,6.12030092]
[1757293953947,3.907,4296.0,4295.9,5.44380092]
[1757293954148,3.907,4296.0,4295.9,6.12030092]
[1757293957829,3.907,4296.0,4295.9,5.63280092]
[1757293958135,3.907,4296.0,4295.9,3.116]
[1757293958332,5.1484,4296.0,4295.9,0.116]
[1757293958484,6.55612,4296.0,4295.6,0.002]
[1757293958684,0.9466,4295.9,4295.6,0.002]
[1757293959200,0.2948,4295.7,4295.6,0.002]
[1757293959398,3.904,4295.7,4295.6,2.32996349]
[1757293959902,4.661,4295.7,4295.6,0.002]
[1757293960087,4.661,4295.7,4295.6,2.32996349]
[1757293961285,3.904,4295.7,4295.6,2.32996349]
[1757293963189,3.904,4295.7,4295.6,0.002]
[1757293963602,3.904,4295.7,4295.6,2.32996349]
[1757293964346,8.7020293,4295.7,4295.6,0.002]
[1757293967906,6.37412,4295.7,4295.6,0.002]
[1757293968148,8.7020293,4295.7,4295.6,0.002]
[1757293968414,0.757,4295.7,4295.6,0.002]
[1757293968632,3.904,4295.7,4295.6,0.002]
[1757293968834,4.661,4295.7,4295.6,0.002]
[1757293970644,3.904,4295.7,4295.6,3.00646349]
[1757293970957,0.001,4296.0,4295.9,2.32780092]
[1757293971154,3.905,4296.0,4295.9,2.32780092]
[1757293971340,3.905,4296.0,4295.9,2.51680092]
[1757293971516,3.905,4296.0,4295.9,3.00430092]
[1757293971918,0.001,4296.0,4295.9,3.00430092]
[1757293972143,3.905,4296.0,4295.9,3.00430092]
[1757293974347,3.905,4296.0,4295.9,3.12030092]
[1757293975336,4.1909,4296.0,4295.9,0.116]
[1757293975550,3.905,4296.0,4295.9,0.116]
[1757293975748,3.905,4296.0,4295.9,2.44380092]
[1757293977174,3.905,4296.0,4295.9,2.63280092]
[1757293977331,3.904,4296.0,4295.9,3.09960092]
[1757293980777,3.904,4296.0,4295.9,6.09960092]
[1757293982242,4.6384,4296.0,4295.9,5.44380092]
[1757293983552,4.6384,4296.0,4295.9,0.116]
[1757293983756,5.0886,4296.0,4295.9,0.116]
[1757293984173,5.0886,4296.0,4295.9,2.44380092]
[1757293984374,4.6384,4296.0,4295.9,2.44380092]
[1757293990155,4.6384,4296.0,4295.9,0.116]
[1757293990355,5.0886,4296.0,4295.9,0.116]
[1757293991179,5.0886,4296.0,4295.9,2.44380092]
[1757293992685,4.6384,4296.0,4295.9,2.44380092]
[1757293992983,5.0886,4296.0,4295.9,0.116]
[1757293994665,5.0886,4296.0,4295.9,2.44380092]
[1757293996871,4.6384,4296.0,4295.9,2.44380092]
[1757294001576,3.904,4296.0,4295.9,2.44380092]
[1757294001783,3.904,4296.0,4295.9,3.09960092]
[1757294002108,3.904,4296.0,4295.9,2.44380092]
[1757294002308,4.3525,4296.0,4295.9,2.44380092]
[1757294002691,4.6384,4296.0,4295.9,2.44380092]
[1757294003200,3.904,4296.0,4295.9,2.44380092]
[1757294003409,0.001,4296.0,4295.9,6.12907892]
[1757294003627,3.902,4296.0,4295.9,6.10580092]
[1757294003773,3.902,4296.0,4295.9,6.22390092]
[1757294003981,3.902,4296.0,4295.9,6.10580092]
[1757294005707,3.902,4296.0,4295.9,5.63280092]
[1757294006506,3.902,4296.0,4295.9,5.44380092]
[1757294007882,3.902,4296.0,4295.9,5.63280092]
[1757294008288,3.902,4296.0,4295.9,6.10580092]
[1757294011689,3.902,4296.0,4295.9,5.44380092]
[1757294013740,3.902,4296.0,4295.9,5.63280092]
[1757294014016,3.902,4296.0,4295.9,6.10580092]
[1757294017127,3.902,4296.0,4295.9,5.44380092]
[1757294020326,3.902,4296.0,4295.9,6.10580092]
[1757294021529,4.3597,4296.0,4295.9,5.44380092]
[1757294022693,0.4587,4296.0,4295.9,9.83478327]
[1757294022895,3.9,4296.0,4295.9,9.83478327]
[1757294023339,4.6639,4296.0,4295.9,9.83478327]
[1757294025842,4.6639,4296.0,4295.9,5.44380092]
[1757294025843,5.1433,4296.0,4295.9,5.44380092]
[1757294028431,5.83643,4296.0,4295.9,0.116]
[1757294028594,5.83643,4296.0,4295.8,0.002]
[1757294029731,5.35703,4296.0,4295.8,0.002]
[1757294029930,0.4794,4295.9,4295.8,0.002]
[1757294030736,1.2433,4295.9,4295.8,0.002]
[1757294035326,1.826943,4295.9,4295.8,0.002]
[1757294037043,4.15474392,4295.9,4295.8,0.002]
[1757294037230,4.94674392,4295.9,4295.8,0.002]
[1757294040758,3.898,4295.9,4295.8,0.002]
[1757294040964,4.3464,4295.9,4295.8,0.002]
[1757294041165,4.6363,4295.9,4295.8,0.002]
[1757294043447,0.7383,4295.9,4295.8,0.002]
[1757294043751,4.6363,4295.9,4295.8,0.002]
[1757294043962,8.4128413,4295.9,4295.8,0.002]
[1757294044563,6.08504038,4295.9,4295.8,0.002]
[1757294046665,4.6363,4295.9,4295.8,0.002]
[1757294049960,4.6363,4295.9,4295.8,2.32985511]
[1757294050262,0.001,4296.0,4295.9,2.32780092]
[1757294050462,3.898,4296.0,4295.9,2.32780092]
[1757294050763,3.898,4296.0,4295.9,6.01560092]
[1757294050930,0.001,4296.0,4295.9,6.13370092]
[1757294051130,3.898,4296.0,4295.9,6.13370092]
[1757294051635,0.001,4296.0,4295.9,6.13370092]
[1757294051962,3.898,4296.0,4295.9,6.13370092]
[1757294053968,3.898,4296.0,4295.9,6.01560092]
[1757294054745,0.001,4296.0,4295.9,6.01560092]
[1757294054945,0.001,4296.0,4295.9,6.24970092]
[1757294055138,0.001,4296.0,4295.9,6.94855607]
[1757294057738,0.001,4296.0,4295.9,11.33953842]
[1757294057938,0.001,4296.0,4295.9,15.23553842]
[1757294058574,0.001,4296.0,4295.9,10.72645607]
[1757294059071,0.001,4296.0,4295.9,10.84455607]
[1757294059952,0.001,4296.0,4295.9,15.23553842]
[1757294063772,0.001,4296.0,4295.9,15.11743842]